bitfinex-derivatives/quotes_ETHF0:USTF0_20260120
["timestamp","ask_amount","ask_price","bid_price","bid_amount"]
[1768911388066,1.21055184,3115.3,3113.7,1.21055184]
[1768911388574,1.35354917,3115.3,3113.8,1.21055184]
[1768911389170,0.30364733,3115.3,3113.8,1.21055184]
[1768911389770,0.16065,3115.3,3114.1,1.21055184]
[1768911389964,1.35354917,3115.7,3114.1,1.21055184]
[1768911391477,1.35354917,3115.7,3114.1,1.35104657]
[1768911393067,0.14299733,3115.7,3114.1,1.35104657]
[1768911393370,1.51417917,3115.7,3114.1,1.35104657]
[1768911393572,0.14299733,3115.6,3114.1,1.35104657]
[1768911394278,1.21055184,3115.4,3114.1,1.35104657]
[1768911395882,1.35354917,3115.4,3114.1,1.21055184]
[1768911397979,0.14299733,3115.4,3114.1,1.21055184]
[1768911398179,0.14299733,3115.4,3113.7,2.91122473]
[1768911398180,0.14299733,3115.3,3113.8,1.21055184]
[1768911398381,1.21055184,3115.1,3113.8,1.21055184]
[1768911399283,0.14299733,3115.3,3113.8,1.21055184]
[1768911399484,0.14299733,3115.3,3114.1,1.21055184]
[1768911399682,0.16064,3115.5,3114.1,1.21055184]
[1768911399978,0.16064,3115.5,3114.1,1.35104657]
[1768911400777,1.56989733,3115.7,3114.4,1.21055184]
[1768911400980,1.4269,3115.7,3114.4,1.35104657]
[1768911402280,1.4269,3115.7,3114.5,0.14049473]
[1768911402484,1.4269,3115.7,3114.7,1.21055184]
[1768911404585,1.4269,3115.7,3114.5,0.14049473]
[1768911404777,1.4269,3115.7,3114.5,1.35104657]
[1768911408785,1.4269,3115.7,3114.5,0.14049473]
[1768911408988,1.4269,3115.7,3114.5,1.35104657]
[1768911411797,0.00396447,3115.9,3114.5,1.35104657]
[1768911412886,0.14442983,3115.9,3114.5,1.21055184]
[1768911419500,0.14442983,3115.9,3114.4,4.18096458]
[1768911419690,0.14442983,3115.9,3114.5,5.25169188]
[1768911420798,1.21055184,3115.5,3114.3,4.04114004]
[1768911420990,1.21055184,3115.3,3114.3,4.04114004]
[1768911421396,1.21055184,3115.3,3114.0,4.18096458]
[1768911422101,1.21055184,3115.3,3114.0,0.13982454]
[1768911422295,1.35225891,3115.3,3113.9,1.21055184]
[1768911422793,1.21055184,3115.0,3113.6,4.34169458]
[1768911422994,1.21055184,3115.0,3113.6,0.30055454]
[1768911423197,1.21055184,3115.0,3113.7,1.21055184]
[1768911423802,1.35225891,3115.2,3113.7,1.21055184]
[1768911424105,0.14170707,3115.1,3113.7,1.21055184]
[1768911424402,0.14170707,3115.1,3113.6,0.13982454]
[1768911425805,0.14170707,3115.1,3113.8,1.21055184]
[1768911426899,0.16065,3115.2,3113.8,1.35037638]
[1768911427198,1.35225891,3115.5,3113.8,1.35037638]
[1768911427800,0.14170707,3115.4,3113.8,0.13982454]
[1768911428100,0.14170707,3115.1,3113.8,2.605]
[1768911430502,0.14170707,3115.0,3113.6,0.13982454]
[1768911430804,0.14170707,3115.0,3113.4,2.606]
[1768911431002,0.14170707,3115.0,3113.4,6.64714004]
[1768911431305,0.14170707,3115.0,3113.4,6.78696458]
[1768911431901,0.14170707,3115.0,3113.5,4.04114004]
[1768911432605,0.14170707,3115.0,3113.4,6.78696458]
[1768911433919,0.14170707,3114.9,3113.4,6.78696458]
[1768911434607,0.14170707,3114.9,3113.5,2.61]
[1768911435902,0.14170707,3114.9,3113.5,2.74982454]
[1768911436408,0.16066,3115.0,3113.6,0.13982454]
[1768911437312,0.16066,3115.0,3113.6,2.75082454]
[1768911438415,0.30236707,3115.0,3113.6,2.75082454]
[1768911438608,0.16067,3114.9,3113.6,2.75082454]
[1768911438815,0.14170707,3114.8,3113.5,2.611]
[1768911439015,0.30237707,3114.8,3113.5,2.611]
[1768911439413,0.30237707,3114.8,3113.5,2.612]
[1768911439917,0.30237707,3114.8,3113.6,0.13982454]
[1768911439918,0.16067,3114.8,3113.6,0.13982454]
[1768911440117,0.16068,3114.7,3113.5,2.612]
[1768911440325,0.16069,3114.5,3113.3,6.65314004]
[1768911440917,0.16069,3114.5,3113.3,2.612]
[1768911441703,0.16069,3114.5,3113.2,6.79296458]
[1768911442212,0.30239707,3114.5,3113.2,4.04114004]
[1768911442517,0.16069,3114.4,3113.1,6.65414004]
[1768911443909,0.16069,3114.4,3113.1,2.613]
[1768911444607,0.1607,3114.3,3113.1,2.613]
[1768911444818,0.1607,3114.3,3113.0,4.04114004]
[1768911445015,0.1607,3114.3,3113.1,2.615]
[1768911449324,0.1607,3114.3,3113.0,4.04114004]
[1768911449520,0.1607,3114.3,3113.1,2.618]
[1768911450423,0.1607,3114.3,3113.2,0.14178873]
[1768911457229,0.1607,3114.3,3113.2,2.76678873]
[1768911460230,0.1607,3114.3,3113.2,6.80792877]
[1768911460930,0.13805271,3114.6,3113.2,6.80792877]
[1768911462235,0.13805271,3114.6,3113.3,0.14178873]
[1768911464336,0.16068,3114.7,3113.3,0.14178873]
[1768911466335,0.30374578,3114.7,3113.3,0.14178873]
[1768911466537,0.16068,3114.6,3113.3,0.14178873]
[1768911466836,0.14306578,3114.5,3113.2,2.628]
[1768911468227,0.14306578,3114.5,3113.1,2.629]
[1768911470835,0.14306578,3114.5,3113.1,2.77061731]
[1768911471041,0.30375578,3114.5,3113.1,2.77061731]
[1768911471244,0.30375578,3114.5,3113.1,0.14161731]
[1768911471447,0.30375578,3114.5,3113.1,2.77161731]
[1768911473944,0.30375578,3114.5,3113.1,0.14161731]
[1768911474146,0.30375578,3114.5,3113.1,2.77361731]
[1768911474447,1.0337,3114.4,3113.1,2.77361731]
[1768911477347,0.1338207,3114.3,3112.9,5.77115921]
[1768911477546,0.1607,3114.2,3112.9,8.40615921]
[1768911478150,0.1607,3114.2,3112.9,2.635]
[1768911479651,0.1607,3114.2,3112.8,0.13878584]
[1768911479852,0.1607,3114.2,3112.9,2.637]
[1768911480256,0.2945207,3114.2,3112.9,2.637]
[1768911481859,0.2945207,3114.2,3112.9,2.639]
[1768911483055,0.2945207,3114.2,3112.8,0.13878584]
[1768911483252,0.1338207,3114.2,3112.8,0.13878584]
[1768911483452,0.2945307,3114.0,3112.8,0.00365589]
[1768911484446,0.1338207,3113.9,3112.8,0.00365589]
[1768911485860,0.2945407,3113.9,3112.8,0.00365589]
[1768911490169,0.1338207,3113.8,3112.8,0.00365589]
[1768911490868,1.34614071,3113.8,3112.8,0.00365589]
[1768911495069,0.1338207,3113.8,3112.8,0.00365589]
[1768911498669,0.1338207,3113.8,3112.8,1.2159759]
[1768911498970,0.16072,3113.9,3112.8,1.2159759]
[1768911501677,0.2945407,3113.9,3112.8,0.00365589]
[1768911502270,0.1338207,3113.8,3112.8,0.00365589]
[1768911504375,1.21232001,3113.7,3112.8,0.00365589]
[1768911504565,1.21578543,3113.7,3112.8,0.00365589]
[1768911504765,1.34836561,3113.7,3112.8,0.00365589]
[1768911505172,1.50909561,3113.7,3112.8,0.00365589]
[1768911508778,0.13258018,3113.6,3112.8,0.00365589]
[1768911511482,0.29332018,3113.6,3112.0,8.39915921]
[1768911511682,0.29332018,3113.6,3112.1,1.21232001]
[1768911512483,0.29332018,3113.6,3112.1,1.21458142]
[1768911512682,0.13258018,3113.3,3112.1,0.00226141]
[1768911515482,1.2651,3113.2,3112.1,0.00226141]
[1768911516087,1.39768018,3113.2,3112.1,0.00226141]
[1768911518079,0.13258018,3113.1,3112.1,0.00226141]
[1768911518477,1.34490019,3113.1,3112.1,0.00226141]
[1768911518681,0.13258018,3113.0,3112.1,0.00226141]
[1768911521090,1.42585,3113.2,3112.1,0.00226141]
[1768911522786,0.13258018,3113.1,3111.5,5.77115921]
[1768911523093,0.16084,3111.5,3109.9,0.133462]
[1768911523284,1.21232001,3110.8,3109.9,0.133462]
[1768911523489,1.21232001,3111.1,3109.9,0.133462]
[1768911523689,1.21232001,3111.1,3110.1,0.133462]
[1768911523892,1.21604804,3111.1,3110.1,0.13633713]
[1768911525286,0.00372803,3111.1,3110.1,0.13633713]
[1768911527487,0.00372803,3111.1,3108.6,1.21232001]
[1768911527488,1.21232001,3110.6,3109.7,0.133462]
[1768911527690,1.21232001,3110.3,3109.7,0.133462]
[1768911527883,1.21232001,3110.6,3109.3,0.133462]
[1768911528090,1.21232001,3111.0,3109.4,0.133462]
[1768911528298,1.21232001,3110.7,3109.4,0.133462]
[1768911528492,1.21232001,3110.4,3109.4,0.133462]
[1768911528690,1.21232001,3110.4,3109.4,0.13676969]
[1768911528997,1.21232001,3110.1,3109.4,0.00330769]
[1768911529194,1.21232001,3110.1,3109.0,0.133462]
[1768911529395,1.21232001,3109.8,3109.0,0.133462]
[1768911529596,1.21232001,3109.5,3109.0,0.133462]
[1768911529789,1.21232001,3109.5,3107.9,1.21232001]
[1768911530094,1.21232001,3109.5,3108.4,7.04695689]
[1768911530485,1.21232001,3110.8,3108.5,1.21232001]
[1768911530682,1.21232001,3110.8,3108.1,14.90237881]
[1768911530683,1.21232001,3110.5,3108.8,1.21232001]
[1768911530891,1.21232001,3110.4,3108.8,1.21232001]
[1768911531300,0.16088,3110.8,3108.8,1.21232001]
[1768911531597,1.21232001,3110.5,3108.9,7.04695689]
[1768911531799,1.21232001,3110.5,3109.0,0.133462]
[1768911531989,0.00372803,3111.1,3109.3,0.133462]
[1768911532299,1.21604804,3111.1,3109.6,0.133462]
[1768911533001,0.00372803,3111.1,3109.6,0.133462]
[1768911535697,0.00372803,3111.1,3109.9,0.13730052]
[1768911536085,0.00372803,3111.1,3110.0,7.18425741]
[1768911536289,0.00372803,3111.1,3110.0,0.13730052]
[1768911536494,0.00372803,3111.1,3110.0,7.18425741]
[1768911537296,0.00372803,3111.1,3109.2,0.13730052]
[1768911537496,0.00372803,3111.1,3109.5,0.13730052]
[1768911537901,0.00372803,3111.1,3109.6,7.18425741]
[1768911538100,0.00372803,3111.1,3109.6,0.13730052]
[1768911538298,0.00372803,3111.1,3109.6,7.18425741]
[1768911538500,0.00372803,3111.1,3109.6,0.13730052]
[1768911538699,0.16088,3110.8,3108.8,0.13730052]
[1768911538899,0.16088,3110.8,3109.0,0.13730052]
[1768911539100,0.16088,3110.8,3109.1,0.13730052]
[1768911539300,0.16088,3110.8,3109.2,0.13730052]
[1768911539497,0.16088,3110.8,3109.3,0.13730052]
[1768911542001,0.16088,3110.8,3109.4,0.13730052]
[1768911542399,0.16088,3110.8,3109.7,0.13730052]
[1768911542897,0.16088,3110.8,3109.8,7.04695689]
[1768911543098,0.16088,3110.8,3109.2,0.13730052]
[1768911543300,0.16089,3110.6,3109.2,0.13730052]
[1768911543903,0.16089,3110.6,3109.4,7.04695689]
[1768911544097,0.1609,3110.5,3109.3,7.04695689]
[1768911544295,0.1609,3110.5,3109.2,0.13730052]
[1768911544499,0.1609,3110.5,3109.2,7.18425741]
[1768911545101,0.1609,3110.5,3109.3,7.04695689]
[1768911545301,0.1609,3110.5,3109.2,0.13730052]
[1768911545502,0.1609,3110.5,3109.3,7.04695689]
[1768911546502,0.1609,3110.4,3109.3,7.04695689]
[1768911546700,0.1609,3110.3,3109.2,0.13730052]
[1768911546895,0.1609,3110.3,3108.8,0.13730052]
[1768911547102,0.16092,3110.1,3108.8,7.18425741]
[1768911547409,0.16092,3110.1,3108.8,0.13730052]
[1768911547707,0.16092,3110.1,3108.9,7.04695689]
[1768911547908,1.1359,3110.0,3108.9,7.04695689]
[1768911548111,1.1359,3110.0,3109.0,7.04695689]
[1768911548502,1.1359,3110.0,3108.8,0.13730052]
[1768911548503,1.1359,3110.0,3109.1,7.04695689]
[1768911548701,1.1359,3110.0,3109.0,7.04695689]
[1768911548907,1.1359,3110.0,3109.0,7.18425741]
[1768911549108,1.1359,3110.0,3109.1,7.04695689]
[1768911550405,1.1359,3110.0,3109.0,0.13730052]
[1768911550610,1.1359,3110.0,3109.3,7.04695689]
[1768911550907,1.1359,3110.0,3109.2,0.13730052]
[1768911551106,1.1359,3110.0,3109.5,0.13730052]
[1768911551707,0.16088,3110.7,3109.8,7.04695689]
[1768911552010,0.16088,3110.7,3109.5,0.13730052]
[1768911552211,1.02825387,3110.6,3109.5,0.13730052]
[1768911552408,0.16088,3110.7,3109.5,0.13730052]
[1768911552609,1.02828625,3110.6,3109.5,0.13730052]
[1768911552798,0.16088,3110.7,3109.5,0.13730052]
[1768911553002,1.03355936,3110.6,3109.5,0.13730052]
[1768911553207,1.03355936,3110.5,3109.5,0.13730052]
[1768911553404,0.16089,3110.6,3109.5,0.13730052]
[1768911553608,1.03388793,3110.5,3108.8,0.13730052]
[1768911553802,0.1609,3110.4,3109.0,0.13730052]
[1768911554201,0.1609,3110.4,3109.2,7.04695689]
[1768911554603,0.1609,3110.4,3109.0,0.13730052]
[1768911554604,0.16091,3110.2,3109.3,7.04695689]
[1768911554813,0.16091,3110.2,3109.0,0.13730052]
[1768911555113,0.16092,3110.0,3109.0,7.04695689]
[1768911555309,0.16092,3110.0,3108.9,0.13730052]
[1768911555509,0.16092,3110.0,3109.1,7.04695689]
[1768911556003,0.16092,3110.0,3109.2,7.04695689]
[1768911556200,0.16093,3109.9,3108.4,0.13730052]
[1768911556704,0.16093,3109.9,3108.1,9.6733357]
[1768911556705,0.16093,3109.9,3108.6,7.18425741]
[1768911556901,0.16093,3109.9,3108.6,0.13730052]
[1768911557103,0.16093,3109.9,3108.7,7.04695689]
[1768911557726,0.16093,3109.9,3108.8,7.04695689]
[1768911558611,0.16093,3109.9,3109.0,0.13730052]
[1768911558909,1.27,3110.8,3109.0,0.13730052]
[1768911559209,0.16091,3110.3,3109.0,0.13730052]
[1768911559511,1.02953816,3110.2,3109.0,0.13730052]
[1768911559714,0.16091,3110.3,3109.1,0.13730052]
[1768911559918,1.0294628,3110.2,3109.1,7.18425741]
[1768911560210,0.16091,3110.3,3109.1,0.13730052]
[1768911560413,1.19057547,3110.2,3109.1,0.13730052]
[1768911560716,0.16091,3110.2,3108.7,0.13730052]
[1768911560913,0.16091,3110.2,3108.8,0.13730052]
[1768911561213,0.16091,3110.2,3109.2,0.13730052]
[1768911561610,0.16091,3110.2,3109.3,7.04695689]
[1768911562011,0.16091,3110.1,3109.3,7.04695689]
[1768911562215,0.16091,3110.1,3109.2,0.13730052]
[1768911562413,0.16091,3110.1,3109.3,7.04695689]
[1768911562811,0.16091,3110.1,3109.4,7.04695689]
[1768911563015,0.16091,3110.1,3109.3,7.04695689]
[1768911563411,0.16091,3110.1,3109.4,7.04695689]
[1768911563810,0.16091,3110.1,3109.5,7.04695689]
[1768911564008,0.16091,3110.1,3108.5,0.13928024]
[1768911564211,0.16091,3110.1,3108.8,0.13928024]
[1768911564607,0.01690142,3110.7,3109.0,0.13928024]
[1768911564818,0.16092,3110.1,3109.0,0.13928024]
[1768911565210,0.16092,3110.1,3109.0,7.18623713]
[1768911567323,0.16095,3109.4,3108.1,0.14165905]
[1768911567808,0.16095,3109.4,3108.5,0.13928024]
[1768911568219,0.16095,3109.4,3108.6,7.04695689]
[1768911568516,0.16095,3109.4,3108.6,7.18623713]
[1768911568712,0.16095,3109.4,3108.7,7.04695689]
[1768911570013,5.008,3110.1,3108.9,7.18623713]
[1768911570218,5.008,3110.1,3108.9,0.13928024]
[1768911570219,0.16092,3109.9,3108.9,0.13928024]
[1768911570922,0.16092,3109.9,3109.1,7.18623713]
[1768911571116,0.16092,3109.9,3109.1,0.13928024]
[1768911571324,0.16092,3109.9,3109.2,7.04695689]
[1768911573324,0.16092,3109.9,3108.6,0.13928024]
[1768911573823,0.16092,3109.9,3108.8,7.04695689]
[1768911574023,0.16092,3109.9,3108.8,7.18623713]
[1768911574223,0.16092,3109.9,3108.9,7.04695689]
[1768911575232,1.36926833,3109.8,3108.1,0.00237881]
[1768911575421,0.16096,3109.3,3108.1,0.00237881]
[1768911575619,0.16096,3109.2,3108.1,0.00237881]
[1768911576021,0.01435159,3109.8,3108.2,6.71663689]
[1768911576224,1.35461283,3109.7,3108.1,0.00237881]
[1768911576426,1.35461283,3109.6,3108.1,0.00237881]
[1768911576628,1.35461283,3109.5,3108.1,0.00237881]
[1768911576821,0.16098,3108.9,3108.1,0.00237881]
[1768911577023,0.16409401,3108.9,3108.1,0.00237881]
[1768911577220,0.16409401,3108.9,3108.3,6.71663689]
[1768911577424,0.16409401,3108.9,3108.1,6.7190157]
[1768911578233,0.16099,3108.7,3108.1,0.00237881]
[1768911578627,0.16099,3108.7,3107.5,0.13928024]
[1768911578833,0.16099,3108.7,3107.7,6.71663689]
[1768911579225,0.16099,3108.7,3107.8,6.71663689]
[1768911579429,0.16099,3108.7,3107.7,6.71663689]
[1768911579631,0.16099,3108.7,3107.7,6.72080365]
[1768911579833,0.16099,3108.7,3107.8,6.71663689]
[1768911580933,0.16099,3108.7,3107.7,0.00416676]
[1768911581629,0.16099,3108.6,3107.7,0.00416676]
[1768911581830,0.161,3108.5,3107.7,0.00416676]
[1768911582227,0.161,3108.5,3107.8,6.71663689]
[1768911582536,0.00311401,3108.9,3107.7,0.00416676]
[1768911582735,0.16101,3108.3,3107.7,0.00416676]
[1768911582929,0.16101,3108.3,3107.5,0.13928024]
[1768911583128,0.16101,3108.3,3107.7,6.71663689]
[1768911583534,0.16101,3108.3,3107.8,6.71663689]
[1768911583730,0.16101,3108.3,3107.7,6.71663689]
[1768911583935,0.16101,3108.3,3107.7,6.71948648]
[1768911584130,0.16101,3108.3,3107.8,6.71663689]
[1768911584637,0.16101,3108.3,3107.9,6.71663689]
[1768911584833,0.16101,3108.3,3107.8,6.71663689]
[1768911585035,0.16101,3108.3,3107.9,6.71663689]
[1768911585739,0.16101,3108.3,3108.0,6.71663689]
[1768911586035,0.07451236,3108.3,3108.0,6.8550536]
[1768911586232,0.07451236,3108.3,3108.1,6.71663689]
[1768911589934,0.00311401,3108.9,3108.2,6.8550536]
[1768911590141,0.16099,3108.8,3108.2,0.13841671]
[1768911590534,0.16099,3108.7,3108.2,0.13841671]
[1768911591037,0.16099,3108.7,3108.3,6.71663689]
[1768911591341,0.16099,3108.7,3108.2,0.13841671]
[1768911591541,0.16099,3108.7,3108.4,6.71663689]
[1768911592043,0.16099,3108.7,3108.5,6.71663689]
[1768911592244,0.16099,3108.7,3108.6,6.59608362]
[1768911592542,0.16099,3108.7,3108.5,6.59608362]
[1768911592742,0.16099,3108.7,3108.2,0.13841671]
[1768911593837,0.16099,3108.7,3107.7,0.00284959]
[1768911594143,0.00311401,3108.9,3107.2,0.14026351]
[1768911594343,0.16102,3108.0,3107.2,0.14026351]
[1768911595141,0.16102,3108.0,3107.2,0.14325338]
[1768911595338,0.16103,3107.9,3107.2,0.14325338]
[1768911598047,0.16103,3107.8,3107.2,0.14325338]
[1768911598341,0.16103,3107.8,3107.2,0.00298987]
[1768911598549,0.16103,3107.8,3106.8,0.14026351]
[1768911599448,0.16103,3107.8,3106.8,0.14327288]
[1768911600543,0.16105,3107.5,3106.8,0.14327288]
[1768911601144,1.1562,3108.2,3106.8,0.14327288]
[1768911601352,0.16102,3108.0,3106.8,0.14327288]
[1768911601948,1.1562,3108.2,3106.8,0.14327288]
[1768911602647,0.94319368,3108.2,3106.8,0.14327288]
[1768911602861,0.94319368,3108.2,3106.8,0.00300937]
[1768911603262,0.94319368,3108.2,3107.1,0.16107]
[1768911603460,0.94061491,3108.2,3107.2,0.00257877]
[1768911604564,0.94061491,3108.2,3107.1,0.16107]
[1768911605164,0.94061491,3108.2,3106.8,3.22300937]
[1768911606468,1.08147203,3108.2,3106.8,3.22300937]
[1768911608662,1.24248203,3108.2,3106.8,3.22300937]
[1768911608866,0.14085712,3108.1,3106.8,0.00300937]
[1768911609060,0.14085712,3108.0,3106.8,0.00300937]
[1768911609264,0.14085712,3107.6,3106.8,0.00300937]
[1768911610258,0.94061491,3108.2,3106.8,0.00300937]
[1768911610259,0.14085712,3108.1,3106.8,0.00300937]
[1768911611366,1.10162491,3108.2,3106.8,0.00300937]
[1768911611367,0.94061491,3108.2,3106.8,0.00300937]
[1768911617269,0.94061491,3108.2,3106.8,0.16408937]
[1768911617469,0.94061491,3108.2,3106.8,0.1969505]
[1768911618469,0.94061491,3108.2,3106.9,14.9]
[1768911618876,0.94061491,3108.2,3106.9,15.06108]
[1768911620275,0.94061491,3108.2,3107.0,0.16107]
[1768911621181,0.90314286,3108.2,3107.1,0.16107]
[1768911622878,0.90314286,3108.2,3107.2,0.16106]
[1768911623082,0.00311401,3108.9,3107.2,4.4951718]
[1768911623380,0.00311401,3108.9,3107.3,5.73324636]
[1768911624281,0.00311401,3108.9,3107.3,0.00221892]
[1768911624677,0.00311401,3108.9,3107.6,0.16104]
[1768911625375,0.16333324,3108.9,3107.6,0.16104]
[1768911632883,0.16333324,3108.9,3108.0,1.21578824]
[1768911639992,0.16333324,3108.9,3107.7,1.21578824]
[1768911640390,0.16021923,3108.7,3107.3,5.73102744]
[1768911640687,0.16021923,3108.6,3107.3,5.73102744]
[1768911640891,0.16021923,3108.3,3106.8,3.81779761]
[1768911641288,0.16021923,3108.3,3107.1,1.21578824]
[1768911642093,0.16021923,3108.3,3106.9,1.21578824]
[1768911642997,0.1883017,3108.0,3106.8,0.00300937]
[1768911643299,0.1883017,3107.7,3106.8,0.00300937]
[1768911647101,0.1883017,3107.7,3105.9,2.599]
[1768911647493,0.1883017,3107.5,3105.5,0.16115]
[1768911647698,0.1883017,3107.4,3105.5,0.16115]
[1768911648096,0.1883017,3107.4,3105.5,0.16526]
[1768911648491,0.3493617,3107.4,3105.5,0.16526]
[1768911648689,0.1883017,3107.3,3105.5,0.16526]
[1768911649095,0.1883017,3107.2,3105.5,0.16526]
[1768911649300,0.1883017,3107.2,3105.5,0.00411]
[1768911649494,0.1883017,3107.0,3105.5,0.00411]
[1768911651090,0.3493817,3107.0,3105.5,0.00411]
[1768911651292,0.1883017,3106.9,3105.5,0.00411]
[1768911651693,0.1883017,3106.9,3104.4,9.01219296]
[1768911651694,0.1883017,3106.3,3104.4,5.73102744]
[1768911651903,1.89194081,3107.8,3103.2,0.25903211]
[1768911651904,0.1883017,3106.1,3103.8,0.16124]
[1768911652097,0.1883017,3106.0,3104.0,0.16123]
[1768911652303,0.16108,3106.9,3103.7,0.06689269]
[1768911652304,0.1883017,3106.8,3104.5,0.1612]
[1768911652607,0.1883017,3106.8,3104.5,2.7602]
[1768911652805,0.1910086,3106.8,3104.5,2.76380961]
[1768911653006,0.1883017,3106.6,3104.5,2.76380961]
[1768911655612,0.1883017,3106.6,3104.6,14.9]
[1768911656614,0.1883017,3106.6,3104.5,0.16480961]
[1768911657016,0.1883017,3106.6,3104.5,15.06480961]
[1768911657215,0.19431985,3106.2,3104.5,0.00360961]
[1768911657605,0.19431985,3106.0,3104.5,0.00360961]
[1768911658116,0.35544985,3106.0,3104.5,0.00360961]
[1768911658319,0.19431985,3105.9,3104.5,0.00360961]
[1768911659225,0.19431985,3105.8,3104.5,0.00360961]
[1768911659822,0.19431985,3105.5,3104.5,0.00360961]
[1768911660025,0.19431985,3105.5,3103.4,14.9]
[1768911660430,0.35547985,3105.5,3103.4,14.9]
[1768911660627,0.19431985,3105.4,3103.2,0.16127]
[1768911660829,0.19431985,3105.4,3103.3,0.16127]
[1768911661022,0.19431985,3105.4,3103.6,0.16125]
[1768911661433,0.19431985,3105.4,3103.7,0.16124]
[1768911661628,0.19431985,3105.4,3103.9,0.16123]
[1768911661934,0.19431985,3105.8,3103.8,4.7110428]
[1768911662135,0.19431985,3105.8,3104.3,0.16121]
[1768911662330,0.19431985,3105.8,3104.1,1.89194081]
[1768911662331,0.19431985,3106.6,3104.5,0.1612]
[1768911662536,0.19431985,3106.6,3104.6,0.1612]
[1768911663225,0.19431985,3106.6,3104.2,0.08246141]
[1768911663621,0.19431985,3106.6,3105.0,0.16118]
[1768911663826,0.19431985,3106.6,3105.1,0.16117]
[1768911664026,0.19431985,3106.6,3105.1,3.38317]
[1768911664928,0.19431985,3106.6,3105.1,0.16117]
[1768911665630,0.19431985,3106.6,3105.1,15.06117]
[1768911665834,0.19431985,3106.6,3105.2,0.16117]
[1768911666036,1.2238,3106.7,3105.1,16.79194081]
[1768911666235,1.2238,3106.7,3105.4,0.16116]
[1768911667031,1.2238,3106.7,3105.5,0.16115]
[1768911667227,1.2238,3106.7,3105.5,0.16525808]
[1768911667828,1.2238,3106.7,3105.6,0.16115]
[1768911670139,1.2238,3106.7,3105.6,2.75615]
[1768911672330,1.2238,3106.7,3105.7,2.596]
[1768911672731,1.2238,3106.7,3105.6,0.16115]
[1768911672931,1.2238,3106.7,3105.7,2.596]
[1768911673940,1.2238,3106.7,3105.7,2.75714]
[1768911674141,1.2238,3106.7,3105.7,0.16114]
[1768911674342,1.2238,3106.7,3105.8,2.596]
[1768911675842,1.2238,3106.7,3105.8,2.75714]
[1768911677445,1.2238,3106.7,3105.8,2.75914]
[1768911680038,1.2238,3106.7,3105.9,0.16113]
[1768911680441,0.0027069,3106.8,3105.9,0.16113]
[1768911681950,0.19431985,3107.4,3106.4,0.16111]
[1768911682250,0.19431985,3108.4,3106.4,0.16111]
[1768911682937,0.19820397,3108.4,3106.4,0.16111]
[1768911684144,0.19820397,3108.4,3106.0,0.1090626]
[1768911684341,0.19820397,3108.4,3106.6,0.16109]
[1768911689840,0.19820397,3108.4,3105.4,5.73102744]
[1768911690042,0.19820397,3108.4,3105.0,0.16118]
[1768911690043,0.21989196,3107.1,3105.0,0.16118]
[1768911691353,0.38096196,3107.1,3105.0,0.16118]
[1768911691547,0.21989196,3107.0,3105.0,0.16118]
[1768911692952,0.38097196,3107.0,3105.0,0.16118]
[1768911693152,0.21989196,3106.9,3105.0,0.16118]
[1768911695649,0.21989196,3106.5,3104.6,14.9]
[1768911695850,0.38100196,3106.4,3104.3,0.16121]
[1768911696050,0.21989196,3106.3,3104.3,0.16121]
[1768911696246,0.21989196,3106.0,3104.4,14.9]
[1768911696452,0.21989196,3106.0,3104.3,0.16121]
[1768911696860,0.2230268,3106.0,3104.3,0.16530728]
[1768911697058,0.2230268,3106.0,3104.3,0.00409728]
[1768911697362,0.21989196,3105.9,3104.3,0.00409728]
[1768911697549,0.38102196,3105.9,3104.3,0.00409728]
[1768911697750,0.21989196,3105.8,3104.3,0.00409728]
[1768911699956,0.38103196,3105.8,3104.3,0.00409728]
[1768911700160,0.21989196,3105.6,3104.3,0.00409728]
[1768911700452,0.38104196,3105.6,3104.3,0.00409728]
[1768911700658,0.21989196,3105.5,3104.3,0.00409728]
[1768911701456,0.21989196,3105.9,3104.3,0.00409728]
[1768911701957,0.00313484,3106.0,3104.3,0.21251089]
[1768911702355,0.00313484,3106.0,3104.4,0.20841361]
[1768911702561,0.2230268,3106.0,3104.4,0.20841361]
[1768911703354,0.2230268,3106.0,3104.5,0.1612]
[1768911703661,0.00313484,3106.0,3104.5,0.38653717]
[1768911706163,0.00313484,3106.0,3104.6,0.1612]
[1768911706362,0.00313484,3106.0,3104.8,0.16119]
[1768911709860,0.23145378,3106.0,3104.8,0.16119]
[1768911710058,0.23145378,3106.0,3104.3,0.00409728]
[1768911710665,0.23145378,3106.0,3104.3,0.16530728]
[1768911713366,0.23145378,3106.0,3104.4,0.16121]
[1768911717377,0.23145378,3106.0,3104.7,0.16119]
[1768911721380,0.23145378,3106.0,3104.3,5.97532715]
[1768911721381,0.00313484,3106.0,3104.9,0.16118]
[1768911723890,0.25003651,3105.9,3104.5,5.73102744]
[1768911724079,0.25003651,3105.9,3104.3,0.00409728]
[1768911724786,0.25003651,3105.9,3104.3,0.16530728]
[1768911725479,0.25003651,3105.9,3104.3,0.40550971]
[1768911726978,0.25003651,3105.9,3104.3,0.16530728]
[1768911727593,0.25003651,3105.9,3104.5,0.1612]
[1768911729391,0.25003651,3105.9,3104.6,0.1612]
[1768911731081,0.00313484,3106.0,3104.6,0.40140243]
[1768911731282,0.00313484,3106.0,3104.7,0.24020243]
[1768911732182,0.00313484,3106.0,3104.7,5.97122987]
[1768911732885,0.00313484,3106.0,3104.7,6.13241987]
[1768911733084,0.00313484,3106.0,3104.8,0.24020243]
[1768911734686,0.25003651,3106.7,3105.1,0.16117]
[1768911735386,0.25003651,3106.7,3105.1,0.40137243]
[1768911735592,0.25003651,3106.7,3105.1,0.16117]
[1768911735786,0.25338253,3106.7,3105.1,0.16117]
[1768911740994,0.25003651,3106.5,3105.1,0.16117]
[1768911742691,0.25003651,3106.5,3105.2,1.21797637]
[1768911744797,0.25003651,3106.5,3105.0,3.79697637]
[1768911745094,0.24744064,3106.4,3105.0,3.79697637]
[1768911749204,0.24744064,3106.4,3105.0,2.579]
[1768911749502,0.24744064,3105.8,3104.8,5.73102744]
[1768911750004,0.24744064,3105.8,3104.5,1.21797637]
[1768911751101,0.24744064,3105.8,3104.3,0.16530728]
[1768911751406,0.24744064,3105.8,3104.6,1.21797637]
[1768911751700,0.24744064,3106.2,3104.7,1.21797637]
[1768911751902,0.24744064,3106.2,3104.5,0.1612]
[1768911752389,0.24744064,3106.2,3104.6,1.21797637]
[1768911752701,0.24744064,3105.9,3104.5,0.1612]
[1768911753002,0.24744064,3105.9,3104.5,1.37917637]
[1768911753194,0.24744064,3105.9,3104.5,0.1612]
[1768911753902,0.24744064,3105.9,3104.4,1.21797637]